bitfinex/quotes_ETHUSD_20240816
["timestamp","ask_amount","ask_price","bid_price","bid_amount"]
[1723828091770,3.92778014,2590.3,2589.4,0.83259378]
[1723828091978,2.4029,2590.4,2589.3,2.3759]
[1723828091979,3.8607,2590.2,2589.6,3.86152]
[1723828092345,3.86092,2590.1,2589.6,3.86152]
[1723828092969,3.86102,2590.0,2589.4,4.09946]
[1723828093188,3.86115,2589.9,2589.5,1.379536]
[1723828093546,3.86102,2590.0,2589.4,4.09946]
[1723828093547,3.86131,2589.8,2589.4,4.09946]
[1723828093884,3.86131,2589.8,2589.4,3.86187]
[1723828094085,7.72216,2590.0,2589.4,3.86187]
[1723828094466,3.86147,2589.7,2589.3,7.32]
[1723828094785,7.2701,2590.0,2589.0,7.32]
[1723828094786,3.86181,2589.5,2589.0,7.32]
[1723828094992,3.86198,2589.4,2589.0,7.32]
[1723828095234,3.86206,2589.3,2589.0,7.32]
[1723828095488,3.86228,2589.2,2589.0,7.32]
[1723828095695,3.86206,2589.3,2589.0,7.32]
[1723828096361,4.492211,2589.4,2589.0,7.32]
[1723828096567,3.86202,2589.4,2589.0,7.32]
[1723828096749,3.86202,2589.4,2588.9,19.72]
[1723828096750,3.86201,2589.4,2588.9,19.72]
[1723828096952,3.8619,2589.4,2588.9,23.58263]
[1723828097199,2.4401,2589.5,2588.9,23.58257]
[1723828097359,2.4401,2589.5,2589.1,3.86225]
[1723828098191,6.30185,2589.5,2589.1,3.86225]
[1723828098390,6.30185,2589.5,2589.0,3.86248]
[1723828099109,3.8616,2589.6,2589.1,3.8623]
[1723828100501,3.8616,2589.6,2589.0,3.86248]
[1723828101589,3.8616,2589.6,2589.1,3.86234]
[1723828101960,3.86178,2589.5,2589.0,3.86248]
[1723828102171,3.86189,2589.4,2588.9,3.86264]
[1723828102750,3.86189,2589.4,2588.9,3.86263]
[1723828103012,3.86189,2589.4,2588.9,7.72509]
[1723828103302,3.86175,2589.5,2589.0,3.86246]
[1723828103516,3.86175,2589.5,2588.9,3.86254]
[1723828103517,3.86191,2589.4,2588.9,7.7251]
[1723828104066,3.86196,2589.4,2588.9,3.86254]
[1723828104266,3.86222,2589.2,2589.0,0.09305962]
[1723828104461,4.725692,2589.4,2589.0,0.09305962]
[1723828104462,3.86205,2589.3,2589.0,0.09305962]
[1723828104705,3.86205,2589.3,2588.8,3.86277]
[1723828104875,3.86205,2589.3,2589.1,0.09297115]
[1723828105078,3.86205,2589.3,2588.8,3.86277]
[1723828105277,3.86205,2589.3,2589.2,0.09288951]
[1723828105483,3.86205,2589.3,2588.8,3.86277]
[1723828105682,3.86205,2589.3,2589.2,0.09288951]
[1723828105911,3.86196,2589.4,2588.7,23.58293]
[1723828105912,3.86226,2589.2,2588.7,23.58293]
[1723828106123,3.86282,2588.8,2588.6,7.32]
[1723828106424,7.7252,2589.0,2588.6,7.32]
[1723828106570,7.72518,2589.0,2588.6,7.32]
[1723828107209,3.86258,2589.0,2588.6,7.32]
[1723828107719,3.8623,2589.2,2588.6,11.18297]
[1723828108012,2.8091,2589.3,2588.6,11.18297]
[1723828108013,3.86209,2589.3,2588.8,3.86277]
[1723828108632,6.28992,2589.6,2588.8,5.592504]
[1723828108786,3.86183,2589.5,2589.0,3.86247]
[1723828108986,5.521305,2589.5,2589.0,3.86247]
[1723828109189,3.86191,2589.4,2588.8,7.72541]
[1723828109518,3.86195,2589.4,2588.7,3.86293]
[1723828109686,3.86204,2589.3,2588.8,3.86278]
[1723828110009,3.8619,2589.4,2589.0,3.86248]
[1723828110646,3.8619,2589.4,2588.9,3.86264]
[1723828111412,3.86227,2589.2,2588.6,7.32]
[1723828111611,3.86223,2589.2,2588.7,3.86293]
[1723828111856,3.862,2589.4,2589.0,3.86249]
[1723828112065,6.29001,2589.6,2589.1,3.86226]
[1723828112066,10.15172,2589.6,2589.1,3.86226]
[1723828112233,3.86186,2589.5,2589.0,3.86249]
[1723828112436,3.86186,2589.5,2589.1,3.86234]
[1723828112623,3.86186,2589.5,2589.0,3.86249]
[1723828113825,2.4283,2589.6,2589.2,3.86211]
[1723828114035,3.86148,2589.7,2589.2,4.50553044]
[1723828114243,3.86148,2589.7,2589.2,3.86211]
[1723828115070,7.72303,2589.7,2589.2,3.86211]
[1723828115378,3.8616,2589.6,2588.9,13.9322233]
[1723828115535,3.8616,2589.6,2589.0,1.39322233]
[1723828115736,3.8616,2589.6,2589.2,3.86218]
[1723828116375,3.8616,2589.6,2589.1,3.86233]
[1723828116587,3.8616,2589.6,2589.1,3.86227]
[1723828116735,3.8616,2589.6,2589.1,7.72452]
[1723828116936,3.8616,2589.6,2589.1,4.72882441]
[1723828117151,3.8616,2589.6,2589.1,8.59108441]
[1723828117546,3.8616,2589.6,2589.2,3.86216]
[1723828118554,2.4864,2590.1,2589.2,19.72]
[1723828118850,3.0,2590.4,2589.7,3.86136]
[1723828118851,3.86056,2590.3,2589.7,3.86136]
[1723828119052,2.4864,2590.4,2589.9,3.861]
[1723828119348,3.86019,2590.6,2590.1,3.86083]
[1723828119553,3.86019,2590.6,2590.2,0.09190078]
[1723828120450,7.72038,2590.6,2590.2,0.09190078]
[1723828120635,1.020678,2590.6,2590.2,0.09190078]
[1723828120835,3.8605,2590.4,2590.2,0.09190078]
[1723828121035,3.86049,2590.4,2589.9,3.86104]
[1723828121353,3.86048,2590.4,2590.0,0.09198675]
[1723828121755,6.17348,2590.3,2590.0,0.09198675]
[1723828121970,6.17348,2590.3,2589.8,3.8613]
[1723828122286,6.17348,2590.3,2589.9,0.09208878]
[1723828122440,3.86087,2590.1,2589.9,0.09208878]
[1723828122841,10.03417,2590.3,2589.7,3.86132]
[1723828123048,6.17348,2590.3,2589.8,3.86129]
[1723828123267,6.17348,2590.3,2589.8,3.95346038]
[1723828124290,6.17343,2590.3,2589.8,3.95346038]
[1723828124448,6.17343,2590.3,2589.8,0.09217038]
[1723828124648,10.03411,2590.3,2589.8,3.95346038]
[1723828124877,10.03412,2590.3,2589.8,3.86129]
[1723828125147,6.17343,2590.3,2589.9,0.08900232]
[1723828125378,6.17343,2590.3,2589.8,7.72251]
[1723828125670,6.17343,2590.3,2589.9,0.08900232]
[1723828125862,2.3128,2590.3,2589.9,0.08900232]
[1723828126067,7.72068,2590.5,2590.0,3.86098]
[1723828126268,3.86018,2590.6,2590.1,3.86083]
[1723828126450,6.346,2590.7,2590.2,4.632801]
[1723828126652,10.20603,2590.7,2590.2,3.86062]
[1723828126956,7.366553,2590.7,2590.3,0.08865554]
[1723828127155,7.366553,2590.7,2590.1,3.86084]
[1723828127376,3.86011,2590.6,2590.2,0.08871214]
[1723828127848,3.86026,2590.5,2590.2,0.08871214]
[1723828128045,3.8605,2590.4,2589.8,3.86119]
[1723828128287,5.5666553,2590.6,2589.7,11.18136]
[1723828128288,3.86064,2590.3,2589.7,11.18136]
[1723828128491,3.8608,2590.2,2589.7,11.18136]
[1723828129489,3.86059,2590.3,2589.8,3.86128]
[1723828129983,3.86073,2590.2,2589.7,11.18145]
[1723828130310,3.86073,2590.2,2589.8,3.86128]
[1723828130509,3.86035,2590.5,2590.0,3.86098]
[1723828130674,3.86049,2590.4,2589.8,3.86122]
[1723828130878,7.72072,2590.5,2590.0,3.86099]
[1723828131099,7.7207,2590.5,2590.0,3.86099]
[1723828131276,3.86041,2590.4,2590.0,3.86099]
[1723828131614,3.86035,2590.5,2589.8,3.86122]
[1723828131615,3.86057,2590.3,2589.8,3.86122]
[1723828131779,3.86041,2590.4,2589.8,3.86122]
[1723828132117,3.86041,2590.4,2589.9,3.86114]
[1723828132676,3.86003,2590.7,2589.9,2.3095]
[1723828132876,3.86003,2590.7,2590.1,3.86082]
[1723828133222,3.86011,2590.6,2590.1,3.86082]
[1723828133978,3.86011,2590.6,2590.2,0.08868767]
[1723828134537,3.86003,2590.7,2590.2,3.94936767]
[1723828134820,3.85945,2591.1,2590.6,3.86]
[1723828135035,3.85916,2591.3,2590.7,3.94810807]
[1723828135356,3.85916,2591.3,2590.9,3.85966]
[1723828135526,3.85914,2591.3,2590.7,4.33408807]
[1723828135681,3.85914,2591.3,2591.0,0.08800345]
[1723828135886,3.85914,2591.3,2590.7,3.85984]
[1723828136077,3.85914,2591.3,2591.1,0.08792193]
[1723828136287,3.85914,2591.3,2590.8,3.93697816]
[1723828136497,0.06708439,2592.1,2591.6,3.85853]
[1723828136710,2.2595,2592.5,2591.7,0.07716117]
[1723828136954,2.2595,2592.5,2591.8,3.85819]
[1723828137103,2.2595,2592.5,2591.9,3.85815]
[1723828137309,0.483,2592.7,2592.1,3.85783]
[1723828137545,4.34001,2592.7,2592.0,3.85789]
[1723828137842,4.83,2592.5,2592.1,0.08104358]
[1723828138056,3.85753,2592.4,2591.8,3.85826]
[1723828138231,3.85753,2592.4,2592.2,0.08096212]
[1723828138538,3.85753,2592.4,2591.8,3.85826]
[1723828138539,5.112001,2592.4,2591.8,3.85826]
[1723828138738,4.83,2592.5,2592.3,0.08088067]
[1723828138939,4.83,2592.5,2591.9,3.85813]
[1723828139107,4.83,2592.5,2591.8,3.85823]
[1723828139108,4.83,2592.5,2592.4,0.08079923]
[1723828139314,3.85748,2592.4,2591.9,3.85816]
[1723828139509,4.83,2592.5,2592.4,0.08079923]
[1723828139716,8.68728,2592.5,2591.9,3.85816]
[1723828140033,0.483,2592.7,2592.0,3.858]
[1723828140337,8.68685,2592.8,2592.2,3.85769]
[1723828140539,8.68683,2592.8,2592.2,3.85769]
[1723828140739,8.68683,2592.8,2591.9,5.30729034]
[1723828140740,3.85725,2592.6,2592.3,0.0782828]
[1723828141116,10.167183,2592.8,2592.1,3.85785]
[1723828141326,8.68683,2592.8,2592.4,0.07820136]
[1723828141498,8.68683,2592.8,2592.0,8.101685]
[1723828141499,3.85713,2592.6,2592.0,3.85792]
[1723828141721,3.85713,2592.6,2592.5,0.07811992]
[1723828141920,3.85748,2592.4,2591.8,3.85828]
[1723828142520,3.85766,2592.3,2591.7,11.17844]
[1723828143363,6.27578,2592.4,2591.9,3.85816]
[1723828143564,11.06369,2592.8,2592.1,3.85786]
[1723828143738,11.06369,2592.8,2592.2,3.85761]
[1723828143936,6.85659,2593.0,2592.3,3.93471376]
[1723828143937,3.85659,2593.0,2592.3,3.93471376]
[1723828144478,8.68647,2593.1,2592.3,3.85748]
[1723828144678,1.106308,2593.0,2592.3,3.85748]
[1723828144879,3.8567,2592.9,2592.4,3.85742]
[1723828145178,4.83,2593.1,2592.6,3.85712]
[1723828145392,4.83,2593.1,2592.6,3.85704]
[1723828145566,3.8561,2593.3,2592.8,3.85675]
[1723828145876,0.385618,2593.3,2592.8,3.85675]
[1723828146081,0.385618,2593.3,2592.8,3.85674]
[1723828146289,0.385618,2593.3,2592.8,3.85673]
[1723828146468,3.85669,2592.9,2592.4,19.72]
[1723828146803,3.85683,2592.8,2592.4,19.72]
[1723828147250,3.85669,2592.9,2592.4,19.72]
[1723828147880,8.68642,2593.1,2592.6,3.85705]
[1723828148192,5.3768,2593.5,2592.9,3.85664]
[1723828148193,6.23267,2593.5,2592.9,3.85664]
[1723828148350,10.08859,2593.5,2593.0,0.385664]
[1723828148536,3.85617,2593.3,2592.4,23.57733]
[1723828148744,3.85661,2593.0,2592.4,27.43467]
[1723828148970,3.85647,2593.1,2592.5,3.85727]
[1723828149278,3.85647,2593.1,2592.5,3.93493401]
[1723828149481,3.85624,2593.2,2592.6,3.85711]
[1723828149641,3.85624,2593.2,2592.5,0.07766401]
[1723828149841,6.23366,2593.0,2592.5,0.07766401]
[1723828150052,3.85687,2592.8,2592.5,0.07766401]
[1723828150278,3.85671,2592.9,2592.5,0.07766401]
[1723828150448,3.85683,2592.8,2592.5,0.07766401]
[1723828150650,7.71379,2592.8,2592.5,0.07766401]
[1723828150896,3.85683,2592.8,2592.5,0.07766401]
[1723828151480,3.85699,2592.7,2592.5,0.07766401]
[1723828151700,3.85713,2592.6,2592.5,0.07766401]
[1723828151896,5.014225,2592.6,2592.5,0.07766401]
[1723828152110,2.2542,2592.5,2591.9,7.32]
[1723828152255,3.85767,2592.3,2591.9,7.32]
[1723828152455,0.611187,2592.3,2591.9,7.32]
[1723828153084,4.468787,2592.3,2591.9,7.32]
[1723828153600,3.85775,2592.2,2591.9,7.32]
[1723828153809,3.85775,2592.2,2591.6,19.72]
[1723828153810,4.83,2592.2,2591.6,19.72]
[1723828153964,4.83,2592.2,2591.1,3.85928]
[1723828153965,3.85855,2591.7,2591.1,3.85928]
[1723828154165,3.85855,2591.7,2590.7,3.85985]
[1723828154166,3.85923,2591.2,2590.7,3.85985]
[1723828154562,8.68923,2591.2,2590.7,3.85985]
[1723828154772,3.85923,2591.2,2590.7,3.85985]
[1723828155002,3.85899,2591.4,2590.7,3.85985]
[1723828155167,3.85899,2591.4,2590.7,4.977835]
[1723828155368,3.85899,2591.4,2590.7,3.85985]
[1723828155595,3.85909,2591.3,2590.7,3.85985]
[1723828155960,3.85923,2591.2,2590.7,3.85985]
[1723828156167,3.85959,2591.0,2590.3,3.86043]
[1723828156563,7.2214,2591.2,2590.3,3.86043]
[1723828156564,3.85967,2590.9,2590.3,3.86043]
[1723828156769,3.85967,2590.9,2590.1,2.4062]
[1723828156770,3.85991,2590.8,2590.2,3.8607]
[1723828157260,0.771905,2590.9,2590.3,3.86055]
[1723828157620,3.85966,2590.9,2590.3,3.86046]
[1723828157767,11.08067,2591.2,2590.1,3.86072]
[1723828157959,3.8601,2590.7,2590.1,3.86072]
[1723828158364,3.86026,2590.5,2589.9,3.86104]
[1723828158702,4.729286,2590.5,2590.0,0.07266528]
[1723828159078,0.869026,2590.5,2590.0,0.07266528]
[1723828159289,4.83,2590.6,2590.1,3.86083]
[1723828159499,3.86029,2590.5,2590.0,0.07266528]
[1723828159676,6.878245,2590.7,2590.2,0.07250211]
[1723828159873,6.25295,2590.7,2590.1,3.93341369]
[1723828160104,3.85974,2590.9,2590.3,0.07242054]
[1723828160314,7.72004,2590.7,2590.2,0.07250211]
[1723828160615,7.72004,2590.7,2590.3,0.07242054]
[1723828160814,3.85997,2590.7,2590.1,3.86083]
[1723828160988,2.3929,2590.6,2590.2,0.07250211]
[1723828161312,3.86067,2590.3,2589.7,3.86139]
[1723828161473,3.86079,2590.2,2589.7,3.86139]
[1723828161819,0.2867206,2590.5,2589.7,3.86139]
[1723828161820,3.86052,2590.4,2589.8,3.86129]
[1723828162001,3.86035,2590.5,2589.8,4.933558]
[1723828162212,7.72069,2590.5,2589.8,4.933558]
[1723828162512,2.3929,2590.6,2589.8,4.933558]
[1723828162719,3.86003,2590.7,2590.0,3.86092]
[1723828163018,3.85996,2590.7,2590.0,3.86091]
[1723828163817,7.19697,2590.9,2590.2,3.86062]
[1723828164175,7.19697,2590.9,2590.3,0.07068643]
[1723828164701,3.85978,2590.9,2590.3,0.07068643]
[1723828164903,3.85978,2590.9,2590.4,3.8604]
[1723828165080,3.85978,2590.9,2590.4,3.86032]
[1723828165440,3.85945,2591.1,2590.5,0.07052329]
[1723828165441,3.85954,2591.0,2590.5,0.07052329]
[1723828165809,3.85945,2591.1,2590.5,4.32376662]
[1723828165976,3.85915,2591.3,2590.6,3.85997]
[1723828166171,3.85911,2591.3,2590.7,4.29229766]
[1723828166403,3.85892,2591.4,2590.7,3.92796509]
[1723828166597,3.85909,2591.3,2590.7,3.92796509]
[1723828166799,6.31134,2591.5,2590.9,3.85965]
[1723828167019,6.31134,2591.5,2590.9,7.71923]
[1723828167223,10.1702,2591.5,2591.0,0.06558898]
[1723828167519,3.85854,2591.7,2591.0,3.92501898]
[1723828167701,3.8587,2591.6,2591.0,4.31753588]
[1723828168083,3.85877,2591.5,2591.0,4.31753588]
[1723828169489,3.85877,2591.5,2591.0,0.45810588]
[1723828169693,3.85893,2591.4,2591.0,0.45810588]
[1723828169897,3.85877,2591.5,2591.0,0.45810588]
[1723828169898,3.85877,2591.5,2591.0,0.06558898]
[1723828170102,2.4919,2591.3,2589.8,3.25379856]
[1723828170484,6.438,2591.4,2589.8,3.25379856]
[1723828170485,3.86015,2590.6,2590.1,3.86077]
[1723828170618,3.86029,2590.5,2589.9,3.86107]
[1723828170931,3.86064,2590.3,2589.7,3.86133]
[1723828171296,3.86064,2590.3,2589.8,3.86129]
[1723828171491,3.86072,2590.2,2589.7,3.86133]
[1723828171924,3.86072,2590.2,2589.7,7.72269]
[1723828172129,3.86072,2590.2,2589.7,3.86133]
[1723828172440,3.86072,2590.2,2589.7,7.7227]
[1723828172612,3.86072,2590.2,2589.7,5.247925]
[1723828172792,3.86072,2590.2,2589.7,3.86133]
[1723828173626,7.72099,2590.4,2589.8,3.86125]
[1723828173840,3.86056,2590.3,2589.8,3.86125]
[1723828173998,3.86056,2590.3,2589.7,3.86133]
[1723828174326,3.86056,2590.3,2589.8,3.86126]
[1723828174633,7.72101,2590.4,2589.8,3.86126]
[1723828174834,3.86049,2590.4,2589.8,3.86126]
[1723828175003,7.72102,2590.4,2589.8,3.86126]
[1723828175200,6.438,2590.6,2590.0,3.86098]
[1723828175201,3.86027,2590.5,2590.0,3.86098]
[1723828175558,10.29821,2590.6,2590.0,3.86086]
[1723828175559,3.8602,2590.6,2590.0,3.86086]
[1723828175843,3.86081,2590.2,2589.7,3.86135]
[1723828176797,3.86051,2590.4,2589.8,3.8612]
[1723828177344,3.86051,2590.4,2589.9,3.86111]
[1723828177693,6.3519,2590.7,2589.7,3.86142]
[1723828177894,3.8604,2590.4,2589.7,3.86131]
[1723828178106,3.8604,2590.4,2589.7,7.72266]
[1723828178107,3.86074,2590.2,2589.7,7.72266]
[1723828178526,3.86074,2590.2,2589.8,3.86129]
[1723828178919,3.86058,2590.3,2589.8,3.86129]
[1723828179248,7.72046,2590.6,2590.1,3.86082]
[1723828179537,2.4919,2590.7,2590.2,0.06242496]
[1723828179538,3.86066,2590.3,2590.2,0.06242496]
[1723828179715,3.86066,2590.3,2589.7,4.5370894]
[1723828180049,3.861,2590.0,2589.5,3.86166]
[1723828180218,3.861,2590.0,2589.5,7.72332]
[1723828180415,6.27604,2590.2,2589.5,3.86166]
[1723828180657,6.27604,2590.2,2589.3,3.0]
[1723828180658,3.86045,2590.4,2589.7,3.86132]
[1723828180943,3.86063,2590.3,2589.8,3.86121]
[1723828181443,3.86108,2590.0,2589.5,3.86165]
[1723828181650,4.247188,2590.0,2589.5,3.86165]
[1723828181816,3.86108,2590.0,2589.5,3.86165]
[1723828183060,3.86108,2590.0,2589.5,7.72331]
[1723828183353,3.86108,2590.0,2589.2,3.0]
[1723828183354,3.86115,2589.9,2589.4,3.86186]
[1723828184238,3.86142,2589.8,2589.3,3.86196]
[1723828184603,3.86115,2589.9,2589.4,3.86182]
[1723828185241,3.86115,2589.9,2589.3,3.86195]
[1723828185445,3.86151,2589.7,2589.2,3.0]
[1723828185683,3.86151,2589.7,2589.1,6.33711]
[1723828185684,7.72309,2589.7,2589.1,6.33711]
[1723828185868,3.86151,2589.7,2589.2,3.86218]
[1723828186067,3.86125,2589.9,2589.3,3.86204]
[1723828186237,3.86125,2589.9,2589.2,1.019929]
[1723828186238,3.86102,2590.0,2589.4,3.8618]
[1723828186580,11.03485,2590.2,2589.6,3.86159]
[1723828186743,3.86087,2590.1,2589.6,3.86159]
[1723828186948,3.86087,2590.1,2589.6,3.86151]
[1723828187149,3.86087,2590.1,2589.6,7.72302]
[1723828187351,3.86087,2590.1,2589.6,3.86151]
[1723828188250,7.72185,2590.1,2589.6,3.86151]
[1723828188455,7.72185,2590.1,2589.5,3.86174]
[1723828188456,3.86087,2590.1,2589.5,3.86174]
[1723828188644,3.86108,2590.0,2589.5,3.86174]
[1723828189276,3.8614,2589.8,2589.2,3.86208]
[1723828189489,3.86153,2589.7,2589.2,3.86208]
[1723828189649,3.8614,2589.8,2589.2,3.86208]
[1723828189650,7.72281,2589.8,2589.2,3.86206]
[1723828189990,3.86109,2590.0,2589.6,3.8616]
[1723828190167,11.03476,2590.2,2589.6,3.8616]
[1723828190341,2.4533,2590.5,2589.6,2.74676]
[1723828190540,3.86051,2590.4,2589.8,3.86122]
[1723828190767,6.31364,2590.5,2590.0,3.86099]
[1723828191743,10.17398,2590.5,2590.0,3.86099]
[1723828191991,2.4533,2590.5,2590.1,3.86082]
[1723828192156,2.4533,2590.5,2590.1,0.57914074]
[1723828192360,3.86079,2590.2,2589.6,4.24765]
[1723828192558,3.86086,2590.1,2589.6,3.86149]
[1723828193345,3.86086,2590.1,2589.6,7.723]
[1723828193550,3.86086,2590.1,2589.6,3.86149]
[1723828194001,3.86086,2590.1,2589.5,3.86174]
[1723828194149,4.246946,2590.1,2589.7,0.061008]
[1723828194349,4.246946,2590.1,2589.4,3.86181]
[1723828194580,0.386086,2590.1,2589.8,0.06092639]
[1723828194890,0.386086,2590.1,2589.5,3.86167]
[1723828194891,3.86093,2590.1,2589.5,3.86167]
[1723828195073,3.86093,2590.1,2589.9,0.06084479]
[1723828195275,3.86078,2590.2,2589.6,3.86159]
[1723828195276,7.72158,2590.2,2589.6,3.86159]
[1723828195449,3.86085,2590.1,2589.6,3.86159]
[1723828195848,3.86097,2590.1,2589.7,0.061008]
[1723828196094,6.2885,2590.0,2589.7,0.061008]
[1723828196465,3.86078,2590.2,2589.6,6.21909]
[1723828196698,3.86078,2590.2,2589.8,0.06092639]
[1723828196916,3.86086,2590.1,2589.9,0.06084479]
[1723828197109,3.86086,2590.1,2589.6,6.21909]
[1723828197435,3.8605,2590.4,2589.7,0.06102389]
[1723828197630,7.72104,2590.4,2589.8,7.72239]
[1723828197784,7.72104,2590.4,2589.8,4.41397864]
[1723828197986,3.86057,2590.3,2589.9,0.0608743]
[1723828198716,7.72153,2590.2,2589.9,0.0608743]
[1723828198925,7.72153,2590.2,2589.6,6.21898]
[1723828198926,3.86071,2590.2,2589.6,6.21898]
[1723828199225,6.29145,2590.1,2590.0,0.06079271]
[1723828199433,2.4306,2590.1,2589.6,3.86148]
[1723828199722,2.4306,2590.1,2589.5,3.86172]
[1723828199923,2.4306,2590.1,2589.6,0.06111685]
[1723828200093,3.0983381,2590.1,2589.6,0.06111685]
[1723828200292,3.861,2590.0,2589.6,0.06111685]
[1723828200849,6.9591881,2590.1,2589.6,3.92268685]
[1723828200982,6.29145,2590.1,2589.6,3.92263685]
[1723828201182,3.86105,2590.0,2589.6,0.06111685]
[1723828201608,1.0538571,2590.0,2589.6,0.06111685]
[1723828201933,3.8613,2589.8,2589.2,6.16186]
[1723828202231,3.8613,2589.8,2589.7,0.06077756]
[1723828202435,3.8613,2589.8,2589.3,3.86195]
[1723828202436,3.86097,2590.1,2589.5,3.86174]
[1723828202716,3.8607,2590.2,2589.7,3.86142]
[1723828202920,2.4686,2590.4,2589.9,3.86104]
[1723828203087,2.4686,2590.4,2589.8,0.06069595]
[1723828203279,6.32902,2590.4,2590.0,0.06053276]
[1723828203479,6.32902,2590.4,2589.9,3.92164435]
[1723828203480,2.4686,2590.4,2589.9,3.92164435]
[1723828203792,6.32908,2590.4,2590.0,0.06053276]
[1723828204126,3.86055,2590.3,2589.8,4.475155]
[1723828204444,3.86056,2590.3,2589.9,0.06061435]
[1723828205015,3.86095,2590.1,2589.9,0.06061435]
[1723828205338,3.8611,2590.0,2589.4,3.86175]
[1723828205650,3.8611,2590.0,2589.5,3.86167]
[1723828206003,3.86116,2589.9,2589.4,3.86175]
[1723828206219,7.72245,2589.9,2589.4,3.86175]
[1723828206537,3.86116,2589.9,2589.4,3.86175]
[1723828206901,2.4899,2590.0,2589.5,3.86167]
[1723828207100,3.86047,2590.4,2589.9,3.86108]
[1723828207101,3.8604,2590.4,2589.9,3.86108]
[1723828207302,3.86064,2590.3,2589.8,3.86129]
[1723828207524,3.8604,2590.4,2589.8,3.86129]
[1723828207845,7.72092,2590.4,2589.9,3.86114]
[1723828208259,3.86059,2590.3,2589.9,3.86114]
[1723828208438,6.35012,2590.6,2589.7,0.386135]
[1723828208745,3.86018,2590.6,2590.1,3.86077]
[1723828208914,3.86018,2590.6,2590.0,3.86096]
[1723828209242,3.86052,2590.4,2590.1,0.06045344]
[1723828209648,3.86052,2590.4,2589.9,3.86114]
[1723828209860,3.86035,2590.5,2590.2,0.06037185]
[1723828210011,3.86035,2590.5,2590.0,3.86091]
[1723828210215,3.86035,2590.5,2590.3,0.06029028]
[1723828210551,3.86035,2590.5,2590.4,0.06020871]
[1723828210733,3.86035,2590.5,2590.0,3.86091]
[1723828210909,3.86035,2590.5,2590.1,0.06045344]
[1723828211333,2.3626,2590.9,2590.4,3.8603]
[1723828211542,6.22233,2590.9,2590.5,0.06012714]
[1723828211757,6.22233,2590.9,2590.2,3.86059]
[1723828211758,3.85989,2590.8,2590.2,3.86059]
[1723828211924,2.3626,2590.9,2590.6,0.05999565]
[1723828212126,3.86012,2590.6,2590.0,7.72177]
[1723828212327,3.628807,2590.9,2590.1,0.060315]
[1723828212638,2.3417,2590.4,2589.6,3.86151]
[1723828212849,3.86094,2590.1,2589.6,3.86151]
[1723828214609,3.86071,2590.2,2589.6,3.8615]
[1723828214833,4.09481,2590.3,2589.6,6.2362]
[1723828215054,4.09481,2590.3,2589.6,6.62235]
[1723828215211,3.86064,2590.3,2589.6,6.62235]
[1723828215416,3.86064,2590.3,2589.6,4.24765]
[1723828215737,3.86064,2590.3,2589.7,3.86144]
[1723828215940,7.1717,2590.4,2589.7,3.86144]
[1723828215941,3.8607,2590.2,2589.7,3.86144]
[1723828216252,3.86051,2590.4,2589.8,3.86122]
[1723828216414,3.86051,2590.4,2589.4,0.80233506]
[1723828216415,3.86011,2590.6,2590.0,3.86093]
[1723828216613,11.01005,2590.7,2590.0,3.86093]
[1723828216614,11.01005,2590.7,2590.1,3.86071]
[1723828216962,11.01005,2590.7,2590.0,3.86091]
[1723828216963,11.01005,2590.7,2590.2,3.86069]
[1723828217170,14.87013,2590.7,2590.2,3.86069]
[1723828217337,11.01005,2590.7,2590.2,3.86069]
[1723828217869,14.87009,2590.7,2590.2,3.86069]
[1723828218169,11.01004,2590.7,2590.0,3.86086]
[1723828218352,3.86017,2590.6,2590.1,3.86077]
[1723828218562,3.86017,2590.6,2590.0,7.72178]
[1723828219169,11.01004,2590.7,2590.2,7.72136]
[1723828219388,3.86004,2590.7,2590.2,3.8606]
[1723828219681,7.2992,2591.0,2590.2,4.56516551]
[1723828219682,2.4692,2591.0,2590.2,4.56516551]
[1723828219839,3.85988,2590.8,2590.3,3.86055]
[1723828220042,3.85973,2590.9,2590.0,2.4326]
[1723828220043,3.86034,2590.5,2590.0,3.86099]
[1723828220222,3.86044,2590.4,2589.9,7.32]
[1723828220653,2.4692,2590.3,2589.9,7.32]
[1723828221127,2.4692,2590.3,2589.9,11.18113]
[1723828221534,6.32976,2590.3,2589.8,23.58115]
[1723828221737,6.32941,2590.6,2589.9,3.86111]
[1723828221955,6.32941,2590.6,2590.1,3.86083]
[1723828222251,3.86026,2590.5,2590.1,3.86083]
[1723828222452,6.32932,2590.6,2590.1,7.72166]
[1723828222653,6.32932,2590.6,2590.1,3.86077]
[1723828222860,3.86012,2590.6,2590.1,3.86077]
[1723828223594,3.85992,2590.8,2590.3,3.86053]
[1723828223816,3.85992,2590.8,2590.2,3.8607]
[1723828223817,3.8599,2590.8,2590.2,3.8607]
[1723828223983,3.86003,2590.7,2590.2,3.8607]
[1723828224163,3.86003,2590.7,2590.3,0.06017452]
[1723828224360,3.86003,2590.7,2590.2,7.72132]
[1723828224666,3.8599,2590.8,2590.3,0.06017452]
[1723828224667,7.71979,2590.8,2590.3,0.06017452]
[1723828225061,3.85927,2591.2,2590.7,3.85987]
[1723828225062,7.1059,2591.2,2590.7,3.85987]
[1723828225267,6.1352,2591.2,2590.7,3.85987]
[1723828225494,6.1352,2591.2,2590.8,0.05976674]
[1723828225696,3.85952,2591.0,2590.5,3.86011]
[1723828225894,6.1352,2591.2,2590.7,3.85995]
[1723828226078,6.1352,2591.2,2590.8,0.05976674]
[1723828226299,3.85937,2591.1,2590.8,0.05976674]
[1723828226623,6.1352,2591.2,2590.9,0.0596852]